fUSD/lending_fUSD_20241224
["ID","MTS","AMOUNT","RATE_DAILY","PERIOD"]
[346547003,1735073432169,-469.82,0.00011884,2]
[346547004,1735073432178,-1852.42,0.00012028,2]
[346547005,1735073432188,-167.04,0.00012106,2]
[346547006,1735073432198,-415.41,0.00012141,2]
[346547007,1735073432207,-962.09,0.00012174,2]
[346547008,1735073432217,-152.33,0.00012192,2]
[346547009,1735073432226,-300.0,0.00012192,2]
[346547010,1735073432235,-300.34,0.00012278,2]
[346547011,1735073432246,-300.0,0.00012278,2]
[346547012,1735073432256,-352.74,0.00012278,2]
[346547013,1735073432266,-437.17,0.00012341,2]
[346547014,1735073432276,-578.522,0.0001235,2]
[346547015,1735073432286,-173.37,0.00012381,2]
[346547016,1735073432295,-437.17,0.00012441,2]
[346547017,1735073432304,-437.17,0.00012441,2]
[346547018,1735073432313,-189.83936089,0.00012478,2]
[346547019,1735073432324,-1138.22,0.00012485,2]
[346547020,1735073432333,-1000.0,0.00012487,2]
[346547021,1735073432342,-13603.0,0.00012488,2]
[346547022,1735073432351,-2496.19,0.000125,7]
[346547023,1735073432360,-1237.72,0.000125,7]
[346547024,1735073432370,-770.84,0.00012541,2]
[346547025,1735073432379,-437.17,0.00012541,2]
[346547026,1735073432388,-437.17,0.00012541,2]
[346547027,1735073432399,-770.84,0.00012541,2]
[346547028,1735073432408,-770.84,0.00012541,2]
[346547029,1735073432417,-437.17,0.00012541,2]
[346547030,1735073432426,-437.17,0.00012541,2]
[346547031,1735073432435,-365.25,0.00012578,2]
[346547032,1735073432444,-365.25,0.00012578,2]
[346547033,1735073432453,-150.0,0.00012578,2]
[346547034,1735073432463,-150.0,0.00012578,2]
[346547035,1735073432474,-365.25,0.00012578,2]
[346547036,1735073432483,-150.0,0.00012578,2]
[346547037,1735073432492,-150.0,0.00012578,2]
[346547038,1735073432501,-365.25,0.00012578,2]
[346547039,1735073432511,-150.0,0.00012578,2]
[346547040,1735073432521,-365.25,0.00012578,2]
[346547041,1735073432530,-150.0,0.00012578,2]
[346547042,1735073432540,-1560.88,0.00012678,2]
[346547043,1735073432549,-150.0,0.00012678,2]
[346547044,1735073432558,-151.63,0.00012678,2]
[346547045,1735073432568,-365.25,0.00012678,2]
[346547046,1735073432579,-150.47,0.00012678,2]
[346547047,1735073432588,-150.0,0.00012678,2]
[346547048,1735073432597,-365.25,0.00012678,2]
[346547049,1735073432606,-150.0,0.00012678,2]
[346547050,1735073432615,-150.0,0.00012678,2]
[346547051,1735073432628,-150.0,0.00012678,2]
[346547052,1735073432637,-365.25,0.00012678,2]
[346547053,1735073432647,-150.0,0.00012678,2]
[346547054,1735073432657,-150.0,0.00012678,2]
[346547055,1735073432666,-380.15475524,0.00012686,2]
[346547056,1735073432676,-1141.7501031,0.00012739,2]
[346547057,1735073432687,-265.1163,0.0001279,2]
[346547058,1735073432696,-986.69,0.000128,2]
[346547059,1735073432705,-311.0401,0.000128,2]
[346547060,1735073432715,-1882.29601571,0.000128,2]
[346547061,1735073432724,-1000.0,0.00012804,2]
[346547062,1735073432733,-8058.89668092,0.00012805,2]
[346547063,1735073432742,-1882.29601564,0.00012811,2]
[346547064,1735073432751,-1000.0,0.00012811,2]
[346547065,1735073432760,-644.87,0.00012817,2]
[346547066,1735073432769,-1882.29601564,0.00012822,2]
[346547067,1735073432781,-1882.29601564,0.00012833,2]
[346547068,1735073432790,-1882.29601564,0.00012844,2]
[346547069,1735073432799,-1882.29601564,0.00012856,2]
[346547070,1735073432808,-1882.29601564,0.00012867,2]
[346547071,1735073432819,-1991.052,0.0001287,2]
[346547072,1735073432828,-170.487,0.0001287,2]
[346547073,1735073432839,-500.0,0.00012876,2]
[346547074,1735073432850,-2000.0,0.00012876,2]
[346547075,1735073432859,-1882.29601564,0.00012878,2]
[346547076,1735073432869,-565.0,0.00012878,2]
[346547077,1735073432878,-1256.0,0.00012878,2]
[346547078,1735073432888,-536.0,0.00012878,2]
[346547079,1735073432897,-1337.688,0.00012878,2]
[346547080,1735073432906,-3888.0,0.00012878,2]
[346547081,1735073432915,-1170.0,0.00012878,2]
[346547082,1735073432924,-150.0,0.00012878,2]
[346547083,1735073432933,-1882.29601564,0.00012889,2]
[346547084,1735073432943,-422.25836631,0.00012889,2]
[346547085,1735073432951,-44728.2452,0.0001289,2]
[346547086,1735073432961,-500.0,0.00012895,2]
[346547087,1735073432970,-2000.0,0.00012895,2]
[346547088,1735073432979,-500.0,0.00012896,2]
[346547089,1735073432989,-2000.0,0.00012896,2]
[346547090,1735073432998,-2000.0,0.00012896,2]
[346547091,1735073433007,-500.0,0.00012896,2]
[346547092,1735073433016,-3863.5139,0.000129,2]
[346547093,1735073433026,-187.12294164,0.000129,2]
[346547094,1735073433035,-1500.0,0.000129,2]
[346547095,1735073433045,-8382.037512,0.000129,2]
[346547096,1735073433055,-5000.0,0.000129,2]
[346547097,1735073433064,-166.60393877,0.000129,2]
[346547098,1735073433075,-260.43046931,0.000129,2]
[346547099,1735073433084,-3220.6032901,0.000129,2]
[346547100,1735073433095,-1882.29601564,0.000129,2]
[346547101,1735073433105,-329.263213,0.00012996,2]
[346547102,1735073433115,-1060.1103508,0.00012996,2]
[346547103,1735073433128,-941.5827171,0.00012996,2]
[346547104,1735073433139,-2025.0,0.00012998,7]
[346547105,1735073433148,-234.12,0.00012999,2]
[346547106,1735073433158,-555.0,0.00013,2]
[346547107,1735073433167,-314282.020783,0.00013,2]
[346547108,1735073433204,-1196.60489619,0.00013,2]
[346547109,1735073433216,-9775.63777361,0.00013,2]
[346547110,1735073433230,-216854.5937265,0.00013,2]
[346547111,1735073433267,-227527.22320658,0.00013,2]
[346547112,1735073433537,-365.6944146,0.00013,2]
[346547113,1735073433547,-18909.77611694,0.00013,2]
[346547114,1735073433559,-10468.8,0.00013,2]
[346547115,1735073433570,-2097.72946846,0.00013,2]
[346547116,1735073433582,-1014.1,0.00013,2]
[346547117,1735073433594,-3122.48816719,0.00013,2]
[346547118,1735073433605,-1774.01012085,0.00013,2]
[346547146,1735073434726,-3700.0,0.00013,2]
[346547149,1735073437550,-380.1547552,0.00012662,2]
[346547150,1735073437559,-121.66211724,0.00013,2]
[346547151,1735073437570,-2994.28661358,0.00013,2]
[346547152,1735073437582,-48009.59999997,0.00013,2]
[346547153,1735073437656,-5511.78573928,0.00013,2]
[346547154,1735073437667,-672.672,0.00013,2]
[346547155,1735073437679,-22907.45988594,0.00013,2]
[346547156,1735073437688,-502.0,0.00013,2]
[346547157,1735073437698,-1065.54011406,0.00013,2]
[346547159,1735073437709,-771.0152849,0.00013,2]
[346547167,1735073437780,-1450.07998979,0.00013,2]
[346547322,1735073439394,-6692.67651458,0.00013,2]
[346547340,1735073439552,-10033.0,0.00013,2]
[346547342,1735073439564,-57333.65086779,0.00013,2]
[346547344,1735073439576,-692.19399999,0.00013,2]
[346547346,1735073439587,-8493.3491598,0.00013,2]
[346547352,1735073439636,-1033.50681685,0.00013,2]
[346547354,1735073439648,-2306.41831059,0.00013,2]
[346547360,1735073439691,-1625.34473752,0.00013,2]
[346547362,1735073439702,-14430.87134721,0.00013,2]
[346547364,1735073439713,-260.51,0.00013,2]
[346547387,1735073439917,-2038.6,0.00013,2]
[346547391,1735073439945,-300.0,0.00013,2]
[346547393,1735073439956,-1419.99639479,0.00013,2]
[346547395,1735073439966,-373.10243565,0.00013,2]
[346547397,1735073439977,-2032.8,0.00013,2]
[346547399,1735073439988,-1760.77577945,0.00013,2]
[346547407,1735073440050,-5015.75456073,0.00013,2]
[346547410,1735073440073,-1956.16,0.00013,2]
[346547413,1735073440084,-874.88099311,0.00013,2]
[346547719,1735073442883,-585.72605019,0.00012878,2]
[346547722,1735073442895,-532.05094981,0.00012878,2]
[346547724,1735073442904,-1000.183,0.00013,2]
[346547726,1735073442915,-923.0,0.00013,2]
[346547730,1735073442926,-17651.118887,0.00013,2]
[346547733,1735073442937,-17060.98047176,0.00013,2]
[346547741,1735073442976,-60309.06773031,0.00013,2]
[346547746,1735073443005,-298.885,0.00013,2]
[346547748,1735073443016,-385.69000001,0.00013,2]
[346547753,1735073443053,-457.49915721,0.00013,2]
[346547755,1735073443064,-2162.48948684,0.00013,2]
[346547757,1735073443076,-35225.99311828,0.00013,2]
[346547759,1735073443087,-766.4192435,0.00013,2]
[346547764,1735073443125,-19591.55653594,0.00013,2]
[346547912,1735073445419,-3122.10727646,0.00013,2]
[346547921,1735073445484,-10385.53136752,0.00013,2]
[346547923,1735073445495,-18808.28833332,0.00013,2]
[346547926,1735073445507,-4815.00211145,0.00013,2]
[346547936,1735073445593,-957.40000005,0.00013,2]
[346547945,1735073445681,-440180.62022438,0.00013,2]
[346547949,1735073445703,-960.8,0.00013,2]
[346547951,1735073445714,-373.46775991,0.00013,2]
[346547953,1735073445725,-1014.65,0.00013,2]
[346547956,1735073445742,-5343.98798247,0.00013,2]
[346547960,1735073445771,-367.32342495,0.00013,2]
[346548107,1735074543324,166.25,9.018e-05,2]
[346548114,1735074631660,-183.66,9.827e-05,2]
[346548115,1735074631670,-212.81452859,0.00010037,2]
[346548116,1735074631679,-78.52547141,0.00010095,2]
[346548117,1735074631691,-134.28905716,0.00010095,2]
[346548118,1735074631700,-317.44,0.00010137,2]
[346548119,1735074631710,-212.81452857,0.00010152,2]
[346548120,1735074631719,-996.12,0.00010252,2]
[346548121,1735074631728,-188.84051415,0.00011092,2]
[346548122,1735074631737,-2180.52,0.00011192,2]
[346548123,1735074631746,-845.81,0.00011239,2]
[346548124,1735074631755,-169.53,0.00011282,2]
[346548125,1735074631765,-239.28315666,0.00011286,2]
[346548126,1735074631776,-10.71684334,0.00011286,2]
[346548127,1735074631785,-300.0,0.00011322,2]
[346548128,1735074631795,-5816.51115666,0.00011323,2]
[346548129,1735074631806,-5695.5,0.00011323,2]
[346548130,1735074631832,-1793.75398673,0.00011323,2]
[346548131,1735074631875,-10157.0,0.00011323,2]
[346548132,1735074631887,-437.23485661,0.00011323,2]
[346548133,1735074631897,-250.0,0.00011382,2]
[346548134,1735074631906,-250.0,0.00011402,2]
[346548135,1735074631915,-1000.0,0.00011428,2]
[346548136,1735074631924,-200.0,0.00011441,2]
[346548137,1735074631933,-400.0,0.0001146,2]
[346548138,1735074631942,-853.72,0.00011505,2]
[346548139,1735074631952,-436.42,0.00011678,2]
[346548140,1735074631962,-365.25,0.00011678,2]
[346548141,1735074631971,-159.59,0.00011897,2]
[346548142,1735074631981,-159.59,0.00011904,2]
[346548143,1735074631990,-159.59,0.00011911,2]
[346548144,1735074632000,-164.14,0.00011914,2]
[346548145,1735074632009,-150.0,0.00011915,2]
[346548147,1735074632019,-159.59,0.00011917,2]
[346548148,1735074632028,-159.59,0.00011924,2]
[346548150,1735074632038,-159.59,0.0001193,2]
[346548152,1735074632047,-159.59,0.00011937,2]
[346548153,1735074632056,-159.59,0.00011944,2]
[346548154,1735074632066,-159.59,0.0001195,2]
[346548155,1735074632075,-159.59,0.00011957,2]
[346548157,1735074632085,-422.63902324,0.00012024,2]
[346548159,1735074632095,-500.0,0.00012255,2]
[346548161,1735074632105,-183.66,0.00012284,2]
[346548163,1735074632116,-570.868,0.0001235,2]
[346548165,1735074632125,-420.0,0.00012438,2]
[346548167,1735074632134,-875.22443208,0.0001248,2]
[346548170,1735074632152,-632.57107737,0.0001248,2]
[346548172,1735074632164,-438.1314448,0.0001248,2]
[346548175,1735074632175,-659.93678442,0.0001248,2]
[346548178,1735074632188,-784.56678699,0.0001248,2]
[346548184,1735074632228,-497.56947434,0.0001248,2]
[346548186,1735074632238,-670.0,0.0001248,2]
[346548188,1735074632247,-150.0,0.0001248,2]
[346548190,1735074632257,-1500.0,0.00012493,2]
[346548192,1735074632267,-996.12,0.00012516,2]
[346548194,1735074632276,-2751.0,0.00012612,2]
[346548196,1735074632286,-570.8750516,0.00012739,2]
[346548198,1735074632295,-380.1547553,0.00012759,2]
[346548200,1735074632305,-2756.787,0.00012833,2]
[346548202,1735074632314,-173.308,0.00012833,2]
[346548204,1735074632324,-1000.0,0.00012857,2]
[346548206,1735074632333,-150.0,0.00012878,2]
[346548208,1735074632343,-150.0,0.00012878,2]
[346548210,1735074632352,-1265.0,0.00012878,2]
[346548212,1735074632361,-565.0,0.00012878,2]
[346548214,1735074632370,-162.33995213,0.00012895,2]
[346548216,1735074632380,-500.0,0.00012896,2]
[346548218,1735074632390,-2000.0,0.00012896,2]
[346548220,1735074632399,-212.6521,0.000129,2]
[346548222,1735074632409,-1000.0,0.000129,2]
[346548224,1735074632418,-4091.2764,0.000129,2]
[346548226,1735074632427,-15191.89906355,0.000129,2]
[346548228,1735074632439,-1234.46917395,0.000129,2]
[346548231,1735074632451,-820.39331624,0.000129,2]
[346548234,1735074632476,-37396.68154626,0.000129,2]
[346548236,1735074632486,-8948.0130535,0.000129,2]
[346548238,1735074632495,-445.32945983,0.000129,2]
[346548240,1735074632505,-742.4426568,0.000129,2]
[346548243,1735074632515,-742.4426568,0.000129,2]
[346548263,1735074632714,-500.0,0.00012973,2]
[346548264,1735074632755,-206.59325071,0.0001299,2]
[346548265,1735074632765,-206.59325071,0.0001299,2]
[346548266,1735074632774,-765.8165337,0.00012996,2]
[346548267,1735074632783,-488.9334149,0.00012996,2]
[346548268,1735074632792,-389.5268512,0.00012996,2]
[346548269,1735074632801,-403.13132044,0.00012999,2]
[346548270,1735074632810,-375.44438956,0.00012999,2]
[346548271,1735074632819,-1455.61466937,0.00012999,2]
[346548272,1735074632827,-671.2439,0.00013,2]
[346548273,1735074632836,-506.0,0.00013,2]
[346548274,1735074632845,-182.8472073,0.00013,2]
[346548275,1735074632854,-41958.73317801,0.00013,2]
[346548276,1735074632863,-282702.27466206,0.00013,2]
[346548368,1735074637551,-37078.54844816,0.00013,2]
[346548369,1735074637611,-382.11078226,0.00013,2]
[346548370,1735074637670,-1792.05630202,0.00013,2]
[346548371,1735074637730,-17634.8498427,0.00013,2]
[346548372,1735074637741,-1268.98535584,0.00013,2]
[346548373,1735074637752,-3054.5,0.00013,2]
[346548374,1735074637766,-612.20543365,0.00013,2]
[346548378,1735074637983,-525.03778964,0.00013,2]
[346548390,1735074639625,-1973.07574702,0.00013,2]
[346548391,1735074639687,-6628.61385795,0.00013,2]
[346548392,1735074639699,-37793.05630369,0.00013,2]
[346548393,1735074639711,-55119.60472389,0.00013,2]
[346548394,1735074639722,-1648.61001073,0.00013,2]
[346548395,1735074639779,-1123.0,0.00013,2]
[346548396,1735074639880,-190902.90320951,0.00013,2]
[346548397,1735074639893,-566.84138598,0.00013,2]
[346548398,1735074639911,-4087.0847451,0.00013,2]
[346548399,1735074639923,-1383.78168941,0.00013,2]
[346548400,1735074639946,-1108.05999929,0.00013,2]
[346548401,1735074639958,-7793.05861426,0.00013,2]
[346548402,1735074639970,-2489.45281728,0.00013,2]
[346548403,1735074639982,-886.67593698,0.00013,2]
[346548404,1735074640007,-801.81421915,0.00013,2]
[346548405,1735074640018,-1157.46453,0.00013,2]
[346548406,1735074640030,-398.62975953,0.00013,2]
[346548407,1735074640042,-1655.59,0.00013,2]
[346548408,1735074640054,-1731.53927155,0.00013,2]
[346548409,1735074640066,-809.62,0.00013,2]
[346548411,1735074640077,-21087.49313714,0.00013,2]
[346548412,1735074640089,-1948.7,0.00013,2]
[346548413,1735074640126,-1399.79399091,0.00013,2]
[346548495,1735074642345,6311.76843237,9.606e-05,2]
[346548496,1735074642365,10000.0,9.606e-05,2]
[346548497,1735074642386,10000.0,9.606e-05,2]
[346548498,1735074642407,10000.0,9.606e-05,2]
[346548499,1735074642427,10000.0,9.606e-05,2]
[346548500,1735074642447,10000.0,9.606e-05,2]
[346548501,1735074642469,10000.0,9.606e-05,2]
[346548502,1735074642489,10000.0,9.606e-05,2]
[346548504,1735074642509,10000.0,9.606e-05,2]
[346548506,1735074642530,10000.0,9.606e-05,2]
[346548508,1735074642551,10000.0,9.606e-05,2]
[346548509,1735074642573,10000.0,9.606e-05,2]
[346548511,1735074642593,10000.0,9.606e-05,2]
[346548514,1735074642613,10000.0,9.606e-05,2]
[346548517,1735074642635,10000.0,9.606e-05,2]
[346548520,1735074642655,10000.0,9.606e-05,2]
[346548524,1735074642676,10000.0,9.606e-05,2]
[346548527,1735074642696,10000.0,9.606e-05,2]
[346548530,1735074642717,10000.0,9.606e-05,2]
[346548531,1735074642737,10000.0,9.606e-05,2]
[346548532,1735074642757,10000.0,9.606e-05,2]
[346548533,1735074642781,10000.0,9.606e-05,2]
[346548534,1735074642801,10000.0,9.606e-05,2]
[346548535,1735074642822,10000.0,9.606e-05,2]
[346548536,1735074642843,10000.0,9.606e-05,2]
[346548537,1735074642865,10000.0,9.606e-05,2]
[346548538,1735074642887,10000.0,9.606e-05,2]
[346548539,1735074642909,10000.0,9.606e-05,2]
[346548540,1735074642931,10000.0,9.606e-05,2]
[346548541,1735074642954,10000.0,9.606e-05,2]
[346548542,1735074642974,10000.0,9.606e-05,2]
[346548543,1735074642995,10000.0,9.606e-05,2]
[346548544,1735074643020,10000.0,9.606e-05,2]
[346548545,1735074643042,10000.0,9.606e-05,2]
[346548547,1735074643063,10000.0,9.606e-05,2]
[346548549,1735074643100,5286.51599004,9.606e-05,2]
[346548552,1735074643384,-17304.66396124,0.00013,2]
[346548553,1735074643422,-877.98055916,0.00013,2]
[346548554,1735074643447,-5618.71172442,0.00013,2]
[346548555,1735074643466,-7300.0,0.00013,2]
[346548556,1735074643508,-1068.91233916,0.00013,2]
[346548557,1735074643528,-3424.26866444,0.00013,2]
[346548558,1735074643589,-1172.58901921,0.00013,2]
[346548559,1735074643620,-9742.7896,0.00013,2]
[346548573,1735074646011,-2746.73849264,0.00013,2]
[346548583,1735074646099,-8720.9914264,0.00013,2]
[346548585,1735074646110,-4131.69384999,0.00013,2]
[346548587,1735074646126,-619.02,0.00013,2]
[346548590,1735074646137,-427.9694705,0.00013,2]
[346548623,1735074646388,-9580.0,0.00013,2]
[346548625,1735074646399,-273650.47701138,0.00013,2]
[346548628,1735074646411,-455.38002,0.00013,2]
[346548633,1735074646452,-384.16329,0.00013,2]
[346548635,1735074646463,-378.8694,0.00013,2]
[346548637,1735074646473,-747.62334753,0.00013,2]
[346549427,1735074704481,202.2,9.59e-05,2]
[346549428,1735074710318,157.955602,0.00016,15]
[346549429,1735074715476,154.140312,0.00016,15]
[346549430,1735075080295,-1018.8,9.866e-05,2]
[346549431,1735075080322,-500.0,0.00011534,2]
[346549432,1735075080347,-630.56506948,0.00011642,2]
[346549433,1735075080371,-400.0,0.00011742,2]
[346549434,1735075080395,-827.22,0.00011815,2]
[346549435,1735075080422,-1315.63,0.0001189,2]
[346549436,1735075080446,-1018.8,0.0001213,2]
[346549437,1735075080471,-563.991,0.0001235,2]
[346549438,1735075080494,-157.955602,0.000125,2]
[346549439,1735075080522,-160.72,0.0001252,2]
[346549440,1735075080546,-160.72,0.00012525,2]
[346549441,1735075080573,-160.72,0.0001253,2]
[346549442,1735075080599,-160.72,0.00012535,2]
[346549443,1735075080624,-160.72,0.0001254,2]
[346549444,1735075080649,-160.72,0.00012546,2]
[346549445,1735075080674,-160.72,0.00012551,2]
[346549446,1735075080699,-160.72,0.00012556,2]
[346549447,1735075080724,-160.72,0.00012561,2]
[346549448,1735075080749,-160.72,0.00012566,2]
[346549449,1735075080775,-160.72,0.00012572,2]
[346549450,1735075080801,-160.72,0.00012577,2]
[346549451,1735075080826,-160.72,0.00012582,2]
[346549452,1735075080850,-285.4375258,0.00012739,2]
[346549453,1735075080876,-10769.0,0.00012741,2]
[346549454,1735075080901,-365.25,0.000128,2]
[346549455,1735075080925,-57.99080272,0.000128,2]
[346549456,1735075304334,2028.78742023,0.00016,15]
[346549461,1735075547602,166.25,9.519e-05,2]
[346549467,1735075620725,10440.0408754,0.00019,60]
[346549477,1735075808365,-955.45,0.00010017,2]
[346549478,1735075816698,202.2,9.301e-05,2]
[346549479,1735075817804,-400.0,0.00011627,2]
[346549480,1735075817842,-386.92,0.00011714,2]
[346549481,1735075817879,-2373.34,0.00011793,2]
[346549482,1735075817915,-27.12400996,0.00011797,2]
[346549492,1735075831882,-272.87599004,0.00011797,2]
[346549493,1735075831892,-7020.4736,0.00011798,2]
[346549494,1735075831901,-5757.07,0.00011847,2]
[346549495,1735075831910,-734.99122872,0.00011898,2]
[346549496,1735075831921,-765.00877128,0.00011898,2]
[346549497,1735075831931,-250.0,0.00011923,2]
[346549498,1735075831940,-876.02183608,0.00011923,2]
[346549499,1735075831951,-1047.64687521,0.00011923,2]
[346549500,1735075831992,-1368.250335,0.00011923,2]
[346549501,1735075832029,-2980.39095371,0.00011923,2]
[346549502,1735075832039,-3888.71,0.00011974,2]
[346549503,1735075832048,-1848.51744261,0.00012022,2]
[346549532,1735075835292,-9137.94368812,0.00012022,2]
[346549545,1735075835509,-12913.53886927,0.00012022,2]
[346549546,1735075835519,-165.49,0.00012116,2]
[346549547,1735075835528,-250.0,0.00012143,2]
[346549548,1735075835537,-250.0,0.00012203,2]
[346549549,1735075835546,-1000.0,0.00012203,2]
[346549550,1735075835555,-955.45,0.00012281,2]
[346549551,1735075835564,-242.01,0.000123,2]
[346549552,1735075835573,-436.42,0.000123,2]
[346549553,1735075835582,-540.339,0.0001235,2]
[346549554,1735075835591,-150.0,0.00012378,2]
[346549555,1735075835600,-436.42,0.000124,2]
[346549556,1735075835609,-452.0,0.00012493,2]
[346549557,1735075835618,-1116.89,0.00012578,2]
[346549558,1735075835627,-247.77,0.00012578,2]
[346549559,1735075835636,-330.12,0.00012578,2]
[346549560,1735075835645,-150.0,0.00012578,2]
[346549561,1735075835654,-150.0,0.00012578,2]
[346549562,1735075835663,-169.55,0.00012594,2]
[346549563,1735075835672,-207.99,0.000126,2]
[346549564,1735075835683,-203.15,0.000126,2]
[346549565,1735075835693,-500.0,0.00012685,2]
[346549566,1735075835702,-285.4375258,0.00012739,2]
[346549567,1735075835711,-11821.15780389,0.000128,2]
[346549568,1735075835721,-426465.46013878,0.000128,2]
[346549569,1735075835730,-11821.15780384,0.00012811,2]
[346549570,1735075835740,-1000.0,0.00012812,2]
[346549571,1735075835749,-11821.15780384,0.00012822,2]
[346549572,1735075835758,-11821.15780384,0.00012833,2]
[346549573,1735075835767,-11821.15780384,0.00012844,2]
[346549574,1735075835776,-11821.15780384,0.00012856,2]
[346549575,1735075835785,-11821.15780384,0.00012867,2]
[346549576,1735075835794,-11821.15780384,0.00012878,2]
[346549577,1735075835804,-150.0,0.00012878,2]
[346549578,1735075835813,-3888.0,0.00012878,2]
[346549579,1735075835822,-72428.10385019,0.0001288,2]
[346549580,1735075835831,-11821.15780384,0.00012889,2]
[346549581,1735075835840,-2392.951,0.00012896,2]
[346549582,1735075835850,-500.0,0.00012896,2]
[346549583,1735075835861,-2000.0,0.00012896,2]
[346549584,1735075836075,-7500.0,0.00012899,2]
[346549585,1735075836087,-37233.4511,0.000129,2]
[346549586,1735075836096,-1210.7534,0.000129,2]
[346549587,1735075836105,-4578.2839,0.000129,2]
[346549588,1735075836114,-897.6824875,0.000129,2]
[346549589,1735075836123,-639.5577,0.000129,2]
[346549590,1735075836133,-1635.05,0.000129,3]
[346549591,1735075836142,-11821.15780384,0.000129,2]
[346549592,1735075836152,-16968.47013195,0.000129,2]
[346549593,1735075836161,-185.4958337,0.000129,2]
[346549594,1735075836170,-310.10662633,0.000129,2]
[346549595,1735075836179,-381.8236099,0.000129,2]
[346549596,1735075836189,-1447.01675227,0.000129,2]
[346549597,1735075836198,-1000.0,0.000129,2]
[346549598,1735075836207,-1000.0,0.000129,2]
[346549599,1735075836216,-1000.0,0.000129,2]
[346549600,1735075836225,-1000.0,0.000129,2]
[346549601,1735075836234,-1000.0,0.000129,2]
[346549602,1735075836243,-1000.0,0.000129,2]
[346549603,1735075836253,-1000.0,0.000129,2]
[346549604,1735075836262,-1358.0,0.000129,2]
[346549605,1735075836272,-420.0,0.00012954,2]
[346549606,1735075836281,-335.41506679,0.0001299,2]
[346549607,1735075836290,-335.41506679,0.0001299,2]
[346549608,1735075836299,-335.41506679,0.0001299,2]
[346549609,1735075836309,-635.8771613,0.00012996,2]
[346549610,1735075836318,-841.4965107,0.00012996,2]
[346549611,1735075836327,-755.9058631,0.00012996,2]
[346549612,1735075836338,-500.0,0.00012999,2]
[346549613,1735075836347,-375.71423491,0.00012999,2]
[346549614,1735075836357,-283.31190351,0.00012999,2]
[346549615,1735075836366,-500.0,0.00012999,2]
[346549616,1735075836375,-592.5200984,0.00012999,2]
[346549617,1735075836384,-500.0,0.00012999,2]
[346549618,1735075836393,-500.0,0.00012999,2]
[346549619,1735075836402,-300.0,0.00012999,2]
[346549620,1735075836411,-500.0,0.00012999,2]
[346549621,1735075836421,-500.0,0.00012999,2]
[346549622,1735075836430,-172.95574003,0.00012999,2]
[346549623,1735075836439,-182.84720729,0.00013,2]
[346549624,1735075836448,-120012.5960463,0.00013,2]
[346549625,1735075836457,-89184.89868836,0.00013,2]
[346549643,1735075837767,-440834.49301446,0.00013,2]
[346549644,1735075837830,-98235.88516027,0.00013,2]
[346549671,1735075840311,-3118.65512092,0.00013,2]
[346549672,1735075840322,-264.35600001,0.00013,2]
[346549712,1735075842867,-7376.95245898,0.00013,2]
[346549714,1735075842879,-5553.62763213,0.00013,2]
[346549737,1735075843295,-286.00679945,0.00013,2]
[346549739,1735075843309,-1844.110716,0.00013,2]
[346549748,1735075843385,-500.0,0.00013,2]
[346549751,1735075843396,-271.92848716,0.00013,2]
[346549754,1735075843420,-41881.60672576,0.00013,2]
[346549757,1735075843443,-4540.0,0.00013,2]
[346549760,1735075843454,-954.75535292,0.00013,2]
[346550040,1735075846469,-5000.0,0.000129,2]
[346550042,1735075846481,-2078.07637989,0.00013,2]
[346550045,1735075846493,-1232.98634296,0.00013,2]
[346550047,1735075846504,-541.96139817,0.00013,2]